[Event "*** Titled Tuesday Blitz"]
[Site "Chess.com"]
[Date "2020.05.12"]
[Round "6"]
[White "vinniethepooh"]
[Black "grunbergmihai"]
[Result "1-0"]
[WhiteElo "2619"]
[BlackElo "2398"]
[TimeControl "180+1"]
[EndTime "11:08:13 PDT"]
[Termination "vinniethepooh won on time"]

1. d4 {[%clk 0:03:00.9]} 1... f5 {[%clk 0:02:59.7]} 2. g3 {[%clk 0:03:00.9]}
2... Nf6 {[%clk 0:02:59.7]} 3. Bg2 {[%clk 0:03:01.4]} 3... g6 {[%clk 0:02:59.8]}
4. Nf3 {[%clk 0:03:00.3]} 4... Bg7 {[%clk 0:03:00.2]} 5. O-O {[%clk 0:03:01]}
5... O-O {[%clk 0:03:01.1]} 6. b3 {[%clk 0:03:01.7]} 6... c6 {[%clk 0:03:00.1]}
7. Bb2 {[%clk 0:03:01.7]} 7... a5 {[%clk 0:02:59.8]} 8. a4 {[%clk 0:03:00.7]}
8... Ne4 {[%clk 0:02:59.3]} 9. Nbd2 {[%clk 0:02:57.8]} 9... d5 {[%clk
0:02:59.1]} 10. Ne5 {[%clk 0:02:52.2]} 10... Be6 {[%clk 0:02:58.4]} 11. f3
{[%clk 0:02:50.7]} 11... Nxd2 {[%clk 0:02:55.9]} 12. Qxd2 {[%clk 0:02:51.6]}
12... Nd7 {[%clk 0:02:55.9]} 13. Nd3 {[%clk 0:02:50.2]} 13... Bf7 {[%clk
0:02:54.6]} 14. e3 {[%clk 0:02:41.1]} 14... Qc7 {[%clk 0:02:51.8]} 15. f4 {[%clk
0:02:34.7]} 15... e6 {[%clk 0:02:35.9]} 16. c4 {[%clk 0:02:26]} 16... Nf6 {[%clk
0:02:24.7]} 17. Rfc1 {[%clk 0:02:21.4]} 17... Ne4 {[%clk 0:02:23.2]} 18. Qc2
{[%clk 0:02:18.3]} 18... Rfc8 {[%clk 0:02:10.7]} 19. Ba3 {[%clk 0:02:11.7]}
19... Qd8 {[%clk 0:02:06.3]} 20. Bxe4 {[%clk 0:02:03.8]} 20... fxe4 {[%clk
0:02:05.5]} 21. Ne5 {[%clk 0:02:04.3]} 21... Be8 {[%clk 0:01:50.7]} 22. Qe2
{[%clk 0:02:00.3]} 22... Qf6 {[%clk 0:01:45.9]} 23. h4 {[%clk 0:01:53.8]} 23...
h5 {[%clk 0:01:34.4]} 24. Kg2 {[%clk 0:01:51.4]} 24... Qf5 {[%clk 0:01:33.3]}
25. Rh1 {[%clk 0:01:44.4]} 25... Bxe5 {[%clk 0:01:20.9]} 26. fxe5 {[%clk
0:01:43.9]} 26... Qf3+ {[%clk 0:01:08]} 27. Qxf3 {[%clk 0:01:39.8]} 27... exf3+
{[%clk 0:01:08.9]} 28. Kxf3 {[%clk 0:01:40.7]} 28... b5 {[%clk 0:01:03.9]} 29.
Bd6 {[%clk 0:01:33.3]} 29... bxc4 {[%clk 0:00:59.8]} 30. bxc4 {[%clk 0:01:28.6]}
30... dxc4 {[%clk 0:00:54.5]} 31. Rhc1 {[%clk 0:01:28.7]} 31... Ra7 {[%clk
0:00:48.1]} 32. Rxc4 {[%clk 0:01:23.5]} 32... Rb7 {[%clk 0:00:42.9]} 33. Rac1
{[%clk 0:01:19.8]} 33... Rb2 {[%clk 0:00:39.5]} 34. R1c2 {[%clk 0:01:12.9]}
34... Rb3 {[%clk 0:00:37.6]} 35. Kf4 {[%clk 0:01:10.5]} 35... Bd7 {[%clk
0:00:34.8]} 36. R4c3 {[%clk 0:01:06.6]} 36... Rb1 {[%clk 0:00:30.5]} 37. Kg5
{[%clk 0:01:00.6]} 37... Kg7 {[%clk 0:00:30]} 38. Rf2 {[%clk 0:01:00.1]} 38...
c5 {[%clk 0:00:20]} 39. e4 {[%clk 0:00:33]} 39... cxd4 {[%clk 0:00:12.8]} 40.
Rxc8 {[%clk 0:00:25.5]} 40... Bxc8 {[%clk 0:00:13.7]} 41. Bf8+ {[%clk
0:00:26.1]} 41... Kh7 {[%clk 0:00:13.4]} 42. Rf7+ {[%clk 0:00:25]} 42... Kg8
{[%clk 0:00:13.1]} 43. Kxg6 {[%clk 0:00:23.8]} 43... Rg1 {[%clk 0:00:09.8]} 44.
Bh6 {[%clk 0:00:17.7]} 44... Rxg3+ {[%clk 0:00:09]} 45. Bg5 {[%clk 0:00:18.1]}
45... d3 {[%clk 0:00:07.4]} 46. Rc7 {[%clk 0:00:14.1]} 46... Ba6 {[%clk
0:00:06.9]} 47. Rd7 {[%clk 0:00:13.2]} 47... Rf3 {[%clk 0:00:05.8]} 48. Rd6
{[%clk 0:00:08.1]} 48... Bc4 {[%clk 0:00:04.1]} 49. Rd4 {[%clk 0:00:07]} 49...
Bb3 {[%clk 0:00:03.3]} 50. Rd8+ {[%clk 0:00:06]} 50... Rf8 {[%clk 0:00:03.3]}
51. Rxd3 {[%clk 0:00:06]} 51... Bxa4 {[%clk 0:00:04.2]} 52. Bf6 {[%clk
0:00:05.7]} 52... Bc2 {[%clk 0:00:04]} 53. Rd7 {[%clk 0:00:04.7]} 53... Bxe4+
{[%clk 0:00:03.5]} 54. Kxh5 {[%clk 0:00:05.1]} 54... Rf7 {[%clk 0:00:03.4]} 55.
Rd8+ {[%clk 0:00:04.7]} 55... Rf8 {[%clk 0:00:03.7]} 56. Rd4 {[%clk 0:00:05.2]}
56... Bf5 {[%clk 0:00:03.4]} 57. Kg5 {[%clk 0:00:05.2]} 57... Rf7 {[%clk
0:00:04.3]} 58. Rd8+ {[%clk 0:00:04.9]} 58... Rf8 {[%clk 0:00:04.2]} 59. Rd7
{[%clk 0:00:05.4]} 59... Rf7 {[%clk 0:00:04.2]} 60. Rd6 {[%clk 0:00:04.8]} 60...
Rf8 {[%clk 0:00:03.9]} 61. h5 {[%clk 0:00:05]} 61... Rf7 {[%clk 0:00:03.8]} 62.
h6 {[%clk 0:00:04]} 62... Rf8 {[%clk 0:00:03.5]} 63. Ra6 {[%clk 0:00:03.2]}
63... a4 {[%clk 0:00:03.1]} 64. Rxa4 {[%clk 0:00:03.3]} 64... Rc8 {[%clk
0:00:02.9]} 65. Ra7 {[%clk 0:00:03.2]} 65... Rc2 {[%clk 0:00:02.3]} 66. Rg7+
{[%clk 0:00:03.4]} 66... Kf8 {[%clk 0:00:02.3]} 67. Ra7 {[%clk 0:00:03.5]} 67...
Rg2+ {[%clk 0:00:02.6]} 68. Kf4 {[%clk 0:00:04.1]} 68... Rf2+ {[%clk 0:00:02.8]}
69. Ke3 {[%clk 0:00:04.3]} 69... Rh2 {[%clk 0:00:02.5]} 70. Kd4 {[%clk
0:00:04.1]} 70... Kg8 {[%clk 0:00:02.3]} 71. Ra8+ {[%clk 0:00:03.3]} 71... Kh7
{[%clk 0:00:02.1]} 72. Rh8+ {[%clk 0:00:03.3]} 72... Kg6 {[%clk 0:00:01.7]} 73.
Bg7 {[%clk 0:00:04]} 1-0

[Event "*** Titled Tuesday Blitz"]
[Site "Chess.com"]
[Date "2020.05.12"]
[Round "6"]
[White "barbara25"]
[Black "Margarita2907"]
[Result "0-1"]
[WhiteElo "2292"]
[BlackElo "2019"]
[TimeControl "180+1"]
[EndTime "11:08:24 PDT"]
[Termination "Margarita2907 won on time"]

1. e4 {[%clk 0:03:00.9]} 1... c5 {[%clk 0:02:57.8]} 2. Nf3 {[%clk 0:03:00.8]}
2... d6 {[%clk 0:02:57.5]} 3. d4 {[%clk 0:02:59.4]} 3... cxd4 {[%clk 0:02:58.4]}
4. Nxd4 {[%clk 0:02:59.7]} 4... Nf6 {[%clk 0:02:58.2]} 5. Nc3 {[%clk 0:02:59.5]}
5... a6 {[%clk 0:02:57.6]} 6. f3 {[%clk 0:02:59.5]} 6... e5 {[%clk 0:02:55.7]}
7. Nb3 {[%clk 0:02:58.2]} 7... Be6 {[%clk 0:02:55.5]} 8. Be3 {[%clk 0:02:57.9]}
8... Be7 {[%clk 0:02:54.4]} 9. Qd2 {[%clk 0:02:57.8]} 9... Nbd7 {[%clk
0:02:52.9]} 10. O-O-O {[%clk 0:02:58]} 10... O-O {[%clk 0:02:52.1]} 11. g4
{[%clk 0:02:58.4]} 11... b5 {[%clk 0:02:52.5]} 12. h4 {[%clk 0:02:58.7]} 12...
b4 {[%clk 0:02:52.7]} 13. Ne2 {[%clk 0:02:58]} 13... a5 {[%clk 0:02:52.5]} 14.
Kb1 {[%clk 0:02:58]} 14... a4 {[%clk 0:02:51.2]} 15. Nbc1 {[%clk 0:02:58]} 15...
Nb6 {[%clk 0:02:50.5]} 16. h5 {[%clk 0:02:57.5]} 16... Nc4 {[%clk 0:02:50.1]}
17. Qd3 {[%clk 0:02:57]} 17... Nxe3 {[%clk 0:02:49.5]} 18. Qxe3 {[%clk
0:02:56.4]} 18... Nd7 {[%clk 0:02:40.8]} 19. h6 {[%clk 0:02:43.3]} 19... g6
{[%clk 0:02:34.8]} 20. f4 {[%clk 0:02:40.3]} 20... exf4 {[%clk 0:02:33.2]} 21.
Nxf4 {[%clk 0:02:40.1]} 21... Nc5 {[%clk 0:02:21.2]} 22. Qd4 {[%clk 0:02:05.3]}
22... Bf6 {[%clk 0:02:12.1]} 23. Nxe6 {[%clk 0:01:40.3]} 23... Nxe6 {[%clk
0:01:59.5]} 24. Qxd6 {[%clk 0:01:37.6]} 24... Qa5 {[%clk 0:01:54.3]} 25. Rd5
{[%clk 0:01:32.9]} 25... Qa7 {[%clk 0:01:43.2]} 26. g5 {[%clk 0:01:09.9]} 26...
Bh8 {[%clk 0:01:32.8]} 27. Bh3 {[%clk 0:01:04.5]} 27... Nc7 {[%clk 0:01:25.2]}
28. Rc5 {[%clk 0:00:57.5]} 28... Na6 {[%clk 0:01:20.9]} 29. Ra5 {[%clk
0:00:55.9]} 29... Qb7 {[%clk 0:01:16.5]} 30. Rf1 {[%clk 0:00:42.9]} 30... Nc7
{[%clk 0:00:57.5]} 31. Rc5 {[%clk 0:00:40.6]} 31... Nb5 {[%clk 0:00:51.8]} 32.
Qc6 {[%clk 0:00:38.6]} 32... Qxc6 {[%clk 0:00:27.6]} 33. Rxc6 {[%clk 0:00:38.1]}
33... Rab8 {[%clk 0:00:19.7]} 34. Nd3 {[%clk 0:00:36.3]} 34... Nd4 {[%clk
0:00:17.7]} 35. Rc7 {[%clk 0:00:35]} 35... Nb5 {[%clk 0:00:12.8]} 36. Rd7 {[%clk
0:00:33.6]} 36... Rbc8 {[%clk 0:00:11]} 37. e5 {[%clk 0:00:33.2]} 37... Nc7
{[%clk 0:00:08.3]} 38. Rdxf7 {[%clk 0:00:31.7]} 38... Rxf7 {[%clk 0:00:05.9]}
39. Rxf7 {[%clk 0:00:30.9]} 39... Kxf7 {[%clk 0:00:05.4]} 40. Bxc8 {[%clk
0:00:31.2]} 40... Ke7 {[%clk 0:00:05.2]} 41. Nxb4 {[%clk 0:00:30.3]} 41... Nb5
{[%clk 0:00:04.5]} 42. Bg4 {[%clk 0:00:28.5]} 42... Bxe5 {[%clk 0:00:03.5]} 43.
Nc6+ {[%clk 0:00:27.8]} 43... Kd6 {[%clk 0:00:02.6]} 44. Nb4 {[%clk 0:00:26.2]}
44... Bf4 {[%clk 0:00:02.2]} 45. Nd3 {[%clk 0:00:25.3]} 45... Bxg5 {[%clk
0:00:03.1]} 46. b3 {[%clk 0:00:24.9]} 46... Bxh6 {[%clk 0:00:04]} 47. bxa4
{[%clk 0:00:24.2]} 47... Nc3+ {[%clk 0:00:04.5]} 48. Kb2 {[%clk 0:00:23.8]}
48... Nxa4+ {[%clk 0:00:05.4]} 49. Kb3 {[%clk 0:00:24]} 49... Nc5+ {[%clk
0:00:05.3]} 50. Kc4 {[%clk 0:00:21.9]} 50... Nxd3 {[%clk 0:00:05]} 51. cxd3
{[%clk 0:00:21.8]} 51... Bg7 {[%clk 0:00:05.1]} 52. a4 {[%clk 0:00:21.2]} 52...
h5 {[%clk 0:00:05.1]} 53. Bf3 {[%clk 0:00:21]} 53... h4 {[%clk 0:00:06]} 54. Bg4
{[%clk 0:00:20.1]} 54... g5 {[%clk 0:00:06.6]} 55. a5 {[%clk 0:00:19.9]} 55...
Ke5 {[%clk 0:00:07.1]} 56. a6 {[%clk 0:00:18.1]} 56... Kf4 {[%clk 0:00:06.8]}
57. a7 {[%clk 0:00:18.1]} 57... Kxg4 {[%clk 0:00:07]} 58. a8=N {[%clk
0:00:17.7]} 58... Kg3 {[%clk 0:00:07]} 59. Nc7 {[%clk 0:00:16.5]} 59... h3
{[%clk 0:00:07]} 60. Ne6 {[%clk 0:00:16.1]} 60... h2 {[%clk 0:00:07.3]} 61. Nxg5
{[%clk 0:00:15.2]} 61... h1=Q {[%clk 0:00:07.4]} 62. Ne4+ {[%clk 0:00:15]} 62...
Kf4 {[%clk 0:00:06.3]} 63. Kd5 {[%clk 0:00:10.7]} 63... Qc1 {[%clk 0:00:06.4]}
64. Nc5 {[%clk 0:00:07.9]} 64... Qd1 {[%clk 0:00:05.7]} 65. Ne6+ {[%clk
0:00:07.5]} 65... Kf5 {[%clk 0:00:04.6]} 66. Nxg7+ {[%clk 0:00:06.8]} 66... Kg6
{[%clk 0:00:05.5]} 67. Ne6 {[%clk 0:00:06.3]} 67... Qxd3+ {[%clk 0:00:05.9]} 68.
Ke5 {[%clk 0:00:06.3]} 68... Qe3+ {[%clk 0:00:05.9]} 69. Kd5 {[%clk 0:00:05.8]}
69... Kf6 {[%clk 0:00:06.3]} 70. Nd4 {[%clk 0:00:05.5]} 70... Qd3 {[%clk
0:00:06.3]} 71. Kc5 {[%clk 0:00:04.6]} 71... Ke5 {[%clk 0:00:06.1]} 72. Nc6+
{[%clk 0:00:04.1]} 72... Ke6 {[%clk 0:00:05.4]} 73. Nd4+ {[%clk 0:00:03.3]}
73... Kd7 {[%clk 0:00:04.9]} 74. Kd5 {[%clk 0:00:02.2]} 74... Ke7 {[%clk
0:00:04.8]} 75. Ke5 {[%clk 0:00:01.4]} 75... Qe3+ {[%clk 0:00:04.6]} 76. Kd5
{[%clk 0:00:01.1]} 76... Kf6 {[%clk 0:00:05.2]} 0-1

[Event "*** Titled Tuesday Blitz"]
[Site "Chess.com"]
[Date "2020.05.12"]
[Round "6"]
[White "Gentlejimmy7"]
[Black "Djager97"]
[Result "0-1"]
[WhiteElo "2560"]
[BlackElo "2433"]
[TimeControl "180+1"]
[EndTime "11:08:45 PDT"]
[Termination "Djager97 won by resignation"]

1. d4 {[%clk 0:03:00.9]} 1... d5 {[%clk 0:02:59.7]} 2. g3 {[%clk 0:03:01]} 2...
Nf6 {[%clk 0:02:58.7]} 3. Bg2 {[%clk 0:03:01.3]} 3... e6 {[%clk 0:02:58.5]} 4.
Nf3 {[%clk 0:03:01.7]} 4... Be7 {[%clk 0:02:58.6]} 5. O-O {[%clk 0:03:02.6]}
5... b5 {[%clk 0:02:59]} 6. b3 {[%clk 0:03:02.1]} 6... Bb7 {[%clk 0:02:53.4]} 7.
c4 {[%clk 0:03:01.4]} 7... bxc4 {[%clk 0:02:50.8]} 8. bxc4 {[%clk 0:03:02.3]}
8... c5 {[%clk 0:02:46.5]} 9. cxd5 {[%clk 0:03:02.1]} 9... Nxd5 {[%clk
0:02:35.2]} 10. dxc5 {[%clk 0:03:01]} 10... Bxc5 {[%clk 0:02:30.1]} 11. Bb2
{[%clk 0:02:59]} 11... O-O {[%clk 0:02:28]} 12. Nc3 {[%clk 0:02:59.5]} 12... Nf6
{[%clk 0:02:20]} 13. Qb3 {[%clk 0:02:55.4]} 13... Qe7 {[%clk 0:02:12.9]} 14. Na4
{[%clk 0:02:45]} 14... Bd5 {[%clk 0:02:07.7]} 15. Qc2 {[%clk 0:02:24.2]} 15...
Bd6 {[%clk 0:01:56]} 16. Nc3 {[%clk 0:02:24.1]} 16... Bb7 {[%clk 0:01:51.1]} 17.
Nb5 {[%clk 0:02:21.6]} 17... Rc8 {[%clk 0:01:12.2]} 18. Qd3 {[%clk 0:02:11.8]}
18... Bc5 {[%clk 0:01:05.7]} 19. Rac1 {[%clk 0:02:07.3]} 19... a6 {[%clk
0:01:02.6]} 20. Bxf6 {[%clk 0:01:59]} 20... gxf6 {[%clk 0:00:50.8]} 21. Nbd4
{[%clk 0:01:49.8]} 21... Nc6 {[%clk 0:00:47.2]} 22. Nb3 {[%clk 0:01:44.8]} 22...
Bb6 {[%clk 0:00:43.1]} 23. Qe4 {[%clk 0:01:40.6]} 23... Ne5 {[%clk 0:00:38]} 24.
Qf4 {[%clk 0:01:37]} 24... Ng6 {[%clk 0:00:28.1]} 25. Qh6 {[%clk 0:01:24.3]}
25... Rxc1 {[%clk 0:00:27.8]} 26. Rxc1 {[%clk 0:01:22.5]} 26... Rd8 {[%clk
0:00:28.4]} 27. h4 {[%clk 0:01:21]} 27... Qf8 {[%clk 0:00:26.1]} 28. Qh5 {[%clk
0:01:13.5]} 28... Rd5 {[%clk 0:00:22.4]} 29. Qg4 {[%clk 0:01:12.9]} 29... Kh8
{[%clk 0:00:21.6]} 30. h5 {[%clk 0:01:09.6]} 30... Ne7 {[%clk 0:00:17.6]} 31.
Nfd2 {[%clk 0:00:34.6]} 31... Rg5 {[%clk 0:00:17.1]} 32. Qf4 {[%clk 0:00:34.6]}
32... Bxg2 {[%clk 0:00:17]} 33. Qxf6+ {[%clk 0:00:33.8]} 33... Qg7 {[%clk
0:00:17.1]} 34. Qxg7+ {[%clk 0:00:33.9]} 34... Kxg7 {[%clk 0:00:16.7]} 35. Kxg2
{[%clk 0:00:33.5]} 35... Rxh5 {[%clk 0:00:16.7]} 36. Ne4 {[%clk 0:00:26.2]}
36... Rd5 {[%clk 0:00:15.1]} 37. Kf3 {[%clk 0:00:21.5]} 37... Nf5 {[%clk
0:00:14.9]} 38. Rc6 {[%clk 0:00:21.2]} 38... Rb5 {[%clk 0:00:12]} 39. g4 {[%clk
0:00:19.4]} 39... Ne7 {[%clk 0:00:10.2]} 40. Rd6 {[%clk 0:00:16.5]} 40... Ng6
{[%clk 0:00:10.4]} 41. Rd1 {[%clk 0:00:12.9]} 41... Ne5+ {[%clk 0:00:10.3]} 42.
Kg3 {[%clk 0:00:12.7]} 42... Bc7 {[%clk 0:00:07.7]} 43. f4 {[%clk 0:00:12.8]}
43... Nc4 {[%clk 0:00:06.4]} 44. Kf3 {[%clk 0:00:11.2]} 44... a5 {[%clk
0:00:05.2]} 45. Rd7 {[%clk 0:00:11.6]} 45... Bb8 {[%clk 0:00:04.4]} 46. Ng5
{[%clk 0:00:12]} 46... a4 {[%clk 0:00:03.6]} 47. Rxf7+ {[%clk 0:00:12.4]} 47...
Kg8 {[%clk 0:00:04]} 48. Nd4 {[%clk 0:00:12.5]} 48... Rxg5 {[%clk 0:00:04]} 49.
Rb7 {[%clk 0:00:10.9]} 49... Bxf4 {[%clk 0:00:04]} 50. Kxf4 {[%clk 0:00:10.4]}
50... Rd5 {[%clk 0:00:04.7]} 51. Nxe6 {[%clk 0:00:10.5]} 51... Nd6 {[%clk
0:00:04.2]} 52. Rb8+ {[%clk 0:00:09.8]} 52... Kf7 {[%clk 0:00:04.3]} 53. Ng5+
{[%clk 0:00:10.3]} 53... Kg6 {[%clk 0:00:04.5]} 54. Nf3 {[%clk 0:00:10.3]} 54...
Nb5 {[%clk 0:00:03.9]} 55. Ne5+ {[%clk 0:00:08.7]} 55... Kf6 {[%clk 0:00:04.5]}
56. g5+ {[%clk 0:00:08.4]} 56... Ke6 {[%clk 0:00:04.6]} 57. Rb6+ {[%clk
0:00:08.9]} 57... Ke7 {[%clk 0:00:04.6]} 58. Nc6+ {[%clk 0:00:08.6]} 58... Kd7
{[%clk 0:00:04.2]} 59. e4 {[%clk 0:00:07.8]} 59... Rc5 {[%clk 0:00:04]} 60. Ne5+
{[%clk 0:00:07.7]} 60... Kc7 {[%clk 0:00:04.3]} 61. Rh6 {[%clk 0:00:07.7]} 61...
Rc2 {[%clk 0:00:03.6]} 62. Rxh7+ {[%clk 0:00:08]} 62... Kb6 {[%clk 0:00:04.1]}
63. g6 {[%clk 0:00:08.4]} 63... Nd4 {[%clk 0:00:02.8]} 64. Rd7 {[%clk
0:00:06.8]} 64... Ne6+ {[%clk 0:00:02.4]} 65. Kf5 {[%clk 0:00:07.3]} 65... Nc5
{[%clk 0:00:03.2]} 66. g7 {[%clk 0:00:06.3]} 66... Rf2+ {[%clk 0:00:02.2]} 67.
Kg5 {[%clk 0:00:03.3]} 67... Rg2+ {[%clk 0:00:02.5]} 68. Ng4 {[%clk 0:00:03.1]}
68... Nxd7 {[%clk 0:00:02.5]} 69. g8=Q {[%clk 0:00:03]} 69... Rxg4+ {[%clk
0:00:03.1]} 70. Kxg4 {[%clk 0:00:03.4]} 70... Nf6+ {[%clk 0:00:03.8]} 71. Kf5
{[%clk 0:00:03.8]} 71... Nxg8 {[%clk 0:00:04.5]} 72. Ke6 {[%clk 0:00:03.6]}
72... Kc5 {[%clk 0:00:04.9]} 73. e5 {[%clk 0:00:03.2]} 73... Kb4 {[%clk
0:00:05.2]} 74. Kf7 {[%clk 0:00:02.7]} 74... Nh6+ {[%clk 0:00:05.3]} 75. Kg6
{[%clk 0:00:02.6]} 75... Ng8 {[%clk 0:00:05]} 76. e6 {[%clk 0:00:02.3]} 76...
Ne7+ {[%clk 0:00:04.5]} 77. Kf7 {[%clk 0:00:02.1]} 77... Nd5 {[%clk 0:00:05.1]}
78. Kg6 {[%clk 0:00:02.4]} 78... Ka3 {[%clk 0:00:05.4]} 79. Kf5 {[%clk
0:00:03.3]} 79... Kxa2 {[%clk 0:00:05.2]} 80. Ke5 {[%clk 0:00:04.2]} 80... Ne7
{[%clk 0:00:05.3]} 81. Kd6 {[%clk 0:00:04.7]} 81... Ng6 {[%clk 0:00:05.3]} 82.
Kc5 {[%clk 0:00:03.3]} 82... a3 {[%clk 0:00:05.4]} 83. Kd4 {[%clk 0:00:03.9]}
83... Kb2 {[%clk 0:00:05.7]} 84. Ke4 {[%clk 0:00:04.8]} 84... a2 {[%clk
0:00:06.1]} 85. Kf5 {[%clk 0:00:05.7]} 85... Ne7+ {[%clk 0:00:06.7]} 0-1

[Event "*** Titled Tuesday Blitz"]
[Site "Chess.com"]
[Date "2020.05.12"]
[Round "6"]
[White "ZarinaShafigullina"]
[Black "blitzking1729"]
[Result "1-0"]
[WhiteElo "2328"]
[BlackElo "2493"]
[TimeControl "180+1"]
[EndTime "11:08:45 PDT"]
[Termination "ZarinaShafigullina won by resignation"]

1. d4 {[%clk 0:03:00.9]} 1... d5 {[%clk 0:02:59.1]} 2. Nf3 {[%clk 0:03:01.8]}
2... Nf6 {[%clk 0:02:58.2]} 3. g3 {[%clk 0:03:02.4]} 3... c5 {[%clk 0:02:57.2]}
4. Bg2 {[%clk 0:03:01.6]} 4... Nc6 {[%clk 0:02:57.6]} 5. O-O {[%clk 0:03:02]}
5... Bg4 {[%clk 0:02:54.8]} 6. dxc5 {[%clk 0:03:00]} 6... e6 {[%clk 0:02:52.6]}
7. c4 {[%clk 0:02:59.9]} 7... Bxc5 {[%clk 0:02:47.9]} 8. cxd5 {[%clk 0:02:58.5]}
8... exd5 {[%clk 0:02:48.5]} 9. Nc3 {[%clk 0:02:58]} 9... O-O {[%clk 0:02:47.8]}
10. Bg5 {[%clk 0:02:57.4]} 10... d4 {[%clk 0:02:47.3]} 11. Ne4 {[%clk
0:02:37.7]} 11... Be7 {[%clk 0:02:44.8]} 12. Nxf6+ {[%clk 0:02:29.9]} 12... Bxf6
{[%clk 0:02:45.7]} 13. Bxf6 {[%clk 0:02:30.5]} 13... Qxf6 {[%clk 0:02:45.9]} 14.
Qb3 {[%clk 0:02:31.1]} 14... Qe7 {[%clk 0:02:34.8]} 15. Rfe1 {[%clk 0:02:30.5]}
15... Be6 {[%clk 0:02:32.7]} 16. Qd3 {[%clk 0:02:14.9]} 16... Rfd8 {[%clk
0:02:29.8]} 17. Qe4 {[%clk 0:02:10.9]} 17... Qf6 {[%clk 0:02:28.9]} 18. a3
{[%clk 0:02:04.4]} 18... Rac8 {[%clk 0:02:13.4]} 19. Rad1 {[%clk 0:01:59.5]}
19... h6 {[%clk 0:02:08.3]} 20. Rd2 {[%clk 0:01:57.9]} 20... Bd5 {[%clk
0:01:58.4]} 21. Qf4 {[%clk 0:01:54.4]} 21... Qxf4 {[%clk 0:01:56.7]} 22. gxf4
{[%clk 0:01:54.4]} 22... Bxf3 {[%clk 0:01:56.7]} 23. Bxf3 {[%clk 0:01:54]} 23...
Na5 {[%clk 0:01:56.7]} 24. Red1 {[%clk 0:01:46.9]} 24... Rc4 {[%clk 0:01:33.1]}
25. e3 {[%clk 0:01:10.8]} 25... b6 {[%clk 0:01:16.9]} 26. Rd3 {[%clk 0:01:01.3]}
26... Kf8 {[%clk 0:01:05.5]} 27. b4 {[%clk 0:00:15.5]} 27... Nc6 {[%clk
0:01:00.7]} 28. Bxc6 {[%clk 0:00:16]} 28... Rxc6 {[%clk 0:01:00.1]} 29. Rxd4
{[%clk 0:00:16.7]} 29... Rxd4 {[%clk 0:00:56.6]} 30. Rxd4 {[%clk 0:00:17.3]}
30... Ke7 {[%clk 0:00:56.8]} 31. Rd3 {[%clk 0:00:16.5]} 31... Rc1+ {[%clk
0:00:53.1]} 32. Kg2 {[%clk 0:00:16.7]} 32... f5 {[%clk 0:00:53.7]} 33. Rb3
{[%clk 0:00:13.7]} 33... b5 {[%clk 0:00:52.7]} 34. Rd3 {[%clk 0:00:13.3]} 34...
a6 {[%clk 0:00:52.3]} 35. Rd5 {[%clk 0:00:13.4]} 35... g6 {[%clk 0:00:51.9]} 36.
Re5+ {[%clk 0:00:13.2]} 36... Kf7 {[%clk 0:00:47.5]} 37. Rd5 {[%clk 0:00:13]}
37... Rc3 {[%clk 0:00:46.4]} 38. a4 {[%clk 0:00:12.9]} 38... bxa4 {[%clk
0:00:39.9]} 39. Ra5 {[%clk 0:00:13]} 39... a3 {[%clk 0:00:29.8]} 40. Rxa6 {[%clk
0:00:13.4]} 40... Rb3 {[%clk 0:00:30.3]} 41. Ra4 {[%clk 0:00:11.5]} 41... g5
{[%clk 0:00:26.5]} 42. fxg5 {[%clk 0:00:11]} 42... hxg5 {[%clk 0:00:27.4]} 43.
b5 {[%clk 0:00:10.9]} 43... Kf6 {[%clk 0:00:24.4]} 44. b6 {[%clk 0:00:10.8]}
44... g4 {[%clk 0:00:20.9]} 45. b7 {[%clk 0:00:10.6]} 45... Rxb7 {[%clk
0:00:20.7]} 46. Rxa3 {[%clk 0:00:10.9]} 46... Kg5 {[%clk 0:00:21.3]} 47. Ra8
{[%clk 0:00:10.1]} 47... Rb2 {[%clk 0:00:20.7]} 48. Kg3 {[%clk 0:00:09.9]} 48...
Rc2 {[%clk 0:00:20.2]} 49. Rg8+ {[%clk 0:00:10]} 49... Kf6 {[%clk 0:00:19.7]}
50. Rf8+ {[%clk 0:00:10.7]} 50... Kg5 {[%clk 0:00:19.6]} 51. Rd8 {[%clk
0:00:10.3]} 51... Ra2 {[%clk 0:00:19]} 52. Rd4 {[%clk 0:00:10]} 52... Ra3 {[%clk
0:00:18]} 53. Rf4 {[%clk 0:00:09.6]} 53... Ra2 {[%clk 0:00:15.8]} 54. Rb4 {[%clk
0:00:09.1]} 54... Ra3 {[%clk 0:00:15.5]} 55. Rf4 {[%clk 0:00:08.9]} 55... Ra2
{[%clk 0:00:15.7]} 56. h4+ {[%clk 0:00:09.4]} 56... gxh3 {[%clk 0:00:15.2]} 57.
Kxh3 {[%clk 0:00:09.8]} 57... Ra3 {[%clk 0:00:14.4]} 58. Kg3 {[%clk 0:00:10.1]}
58... Ra2 {[%clk 0:00:14.5]} 59. Rb4 {[%clk 0:00:10.4]} 59... Ra5 {[%clk
0:00:14]} 60. Rb8 {[%clk 0:00:10.6]} 60... Ra3 {[%clk 0:00:12.8]} 61. Rg8+
{[%clk 0:00:10.6]} 61... Kf6 {[%clk 0:00:12.9]} 62. Kf3 {[%clk 0:00:11.1]} 62...
Ke5 {[%clk 0:00:12.4]} 63. Re8+ {[%clk 0:00:11.1]} 63... Kf6 {[%clk 0:00:12.6]}
64. Kg3 {[%clk 0:00:11]} 64... Rb3 {[%clk 0:00:11.7]} 65. Rf8+ {[%clk
0:00:10.7]} 65... Ke5 {[%clk 0:00:11.4]} 66. f4+ {[%clk 0:00:11.1]} 66... Ke4
{[%clk 0:00:10.5]} 67. Re8+ {[%clk 0:00:11.4]} 67... Kd5 {[%clk 0:00:10.2]} 68.
Kf3 {[%clk 0:00:12.1]} 68... Kd6 {[%clk 0:00:10.2]} 69. Re5 {[%clk 0:00:12.3]}
69... Rb1 {[%clk 0:00:08.2]} 70. Rxf5 {[%clk 0:00:12.7]} 70... Ke6 {[%clk
0:00:07.7]} 71. Re5+ {[%clk 0:00:12.5]} 71... Kf6 {[%clk 0:00:08]} 72. Ra5
{[%clk 0:00:12.7]} 72... Rh1 {[%clk 0:00:07.4]} 73. Ke4 {[%clk 0:00:12.7]} 73...
Rh3 {[%clk 0:00:07.4]} 74. Ra6+ {[%clk 0:00:13.1]} 74... Ke7 {[%clk 0:00:06.7]}
75. Kd4 {[%clk 0:00:13.5]} 75... Rh8 {[%clk 0:00:05.5]} 76. e4 {[%clk
0:00:13.7]} 76... Rh1 {[%clk 0:00:05.3]} 77. Ke5 {[%clk 0:00:13.8]} 77... Rh5+
{[%clk 0:00:05.5]} 78. f5 {[%clk 0:00:14.3]} 78... Rh1 {[%clk 0:00:06.1]} 79.
Ra7+ {[%clk 0:00:14.6]} 79... Kf8 {[%clk 0:00:06.2]} 80. Ke6 {[%clk 0:00:14.1]}
80... Rb1 {[%clk 0:00:05.4]} 81. Kf6 {[%clk 0:00:12.7]} 81... Rb6+ {[%clk
0:00:04.7]} 82. Kg5 {[%clk 0:00:13.1]} 82... Rb3 {[%clk 0:00:04.3]} 83. e5
{[%clk 0:00:12.8]} 83... Rb5 {[%clk 0:00:03.8]} 84. Kf6 {[%clk 0:00:12.3]} 84...
Rb6+ {[%clk 0:00:03.4]} 85. e6 {[%clk 0:00:12.4]} 85... Ke8 {[%clk 0:00:02]} 86.
Ra8+ {[%clk 0:00:12.5]} 1-0